fUST/lending_fUST_20250819
["ID","MTS","AMOUNT","RATE_DAILY","PERIOD"]
[380140763,1755571851689,-480.0,0.00019726,2]
[380140764,1755571851698,-487.63,0.00019726,2]
[380140765,1755571851708,-563.21,0.00019726,2]
[380140766,1755571851717,-480.0,0.00019726,2]
[380140767,1755571851726,-526.33,0.00019726,2]
[380140768,1755571851799,-743.48,0.00019726,2]
[380140769,1755571851809,-350.37270005,0.00019726,2]
[380140770,1755571851818,-1905.62,0.00019726,2]
[380140771,1755571851827,-480.0,0.00019726,2]
[380140772,1755571851837,-480.0,0.00019726,2]
[380140773,1755571851847,-480.0,0.00019726,2]
[380140774,1755571851857,-480.0,0.00019726,2]
[380140775,1755571851867,-480.0,0.00019726,2]
[380140776,1755571851877,-480.0,0.00019726,2]
[380140777,1755571851887,-151.0,0.00019726,2]
[380140778,1755571851896,-151.0,0.00019726,2]
[380140779,1755571851906,-480.0,0.00019726,2]
[380140780,1755571851917,-480.0,0.00019726,2]
[380140781,1755571851926,-864.85,0.00019726,2]
[380140782,1755571851936,-940.49,0.00019726,2]
[380140783,1755571851946,-2244.38,0.00019726,2]
[380140784,1755571851956,-480.0,0.00019726,2]
[380140785,1755571851966,-480.0,0.00019726,2]
[380140786,1755571851975,-484.97191476,0.00019726,2]
[380140787,1755571851985,-480.0,0.00019726,2]
[380140788,1755571851994,-480.0,0.00019726,2]
[380140789,1755571852004,-480.0,0.00019726,2]
[380140790,1755571852015,-480.0,0.00019726,2]
[380140791,1755571852024,-579.74,0.00019726,2]
[380140792,1755571852034,-480.0,0.00019726,2]
[380140793,1755571852043,-689.29,0.00019726,2]
[380140794,1755571852053,-403.305264,0.00019726,2]
[380140795,1755571852061,-480.0,0.00019726,2]
[380140796,1755571852071,-403.305264,0.00019726,2]
[380140797,1755571852080,-151.0,0.00019726,2]
[380140798,1755571852090,-1793.73,0.00019726,2]
[380140799,1755571852100,-1036.413818,0.00019726,2]
[380140800,1755571852109,-151.0,0.00019726,2]
[380140801,1755571852118,-1036.413818,0.00019726,2]
[380140802,1755571852128,-151.0,0.00019726,2]
[380140803,1755571852137,-1036.413818,0.00019726,2]
[380140804,1755571852147,-1084.95,0.00019726,2]
[380140805,1755571852156,-403.305264,0.00019726,2]
[380140806,1755571852165,-403.305264,0.00019726,2]
[380140807,1755571852175,-1036.413818,0.00019726,2]
[380140808,1755571852184,-418.589448,0.00019726,2]
[380140809,1755571852193,-1036.413818,0.00019726,2]
[380140810,1755571852202,-418.589448,0.00019726,2]
[380140811,1755571852212,-1036.413818,0.00019726,2]
[380140812,1755571852221,-480.0,0.00019726,2]
[380140813,1755571852231,-418.589448,0.00019726,2]
[380140814,1755571852240,-418.589448,0.00019726,2]
[380140815,1755571852249,-151.0,0.00019726,2]
[380140816,1755571852258,-151.0,0.00019726,2]
[380140817,1755571852267,-480.0,0.00019726,2]
[380140818,1755571852277,-824.97,0.00019726,2]
[380140819,1755571852286,-2022.0,0.00019726,2]
[380140820,1755571852296,-480.0,0.00019726,2]
[380140821,1755571852305,-480.0,0.00019726,2]
[380140822,1755571852316,-7332.65,0.00019726,2]
[380140823,1755571852326,-480.0,0.00019726,2]
[380140824,1755571852335,-480.0,0.00019726,2]
[380140825,1755571852345,-480.0,0.00019726,2]
[380140826,1755571852355,-480.0,0.00019726,2]
[380140827,1755571852364,-606.92055696,0.00019726,2]
[380140828,1755571852373,-161.530892,0.00019726,2]
[380140829,1755571852382,-161.530892,0.00019726,2]
[380140830,1755571852392,-480.0,0.00019726,2]
[380140831,1755571852402,-161.530892,0.00019726,2]
[380140832,1755571852412,-725.84,0.00019726,2]
[380140833,1755571852422,-480.0,0.00019726,2]
[380140834,1755571852432,-480.0,0.00019726,2]
[380140835,1755571852441,-161.530892,0.00019726,2]
[380140836,1755571852450,-161.530892,0.00019726,2]
[380140837,1755571852459,-2434.97,0.00019726,2]
[380140838,1755571852468,-161.530892,0.00019726,2]
[380140839,1755571852477,-151.0,0.00019726,2]
[380140840,1755571852487,-151.0,0.00019726,2]
[380140841,1755571852495,-480.0,0.00019726,2]
[380140842,1755571852505,-480.0,0.00019726,2]
[380140843,1755571852514,-480.0,0.00019726,2]
[380140844,1755571852523,-576.65,0.00019726,2]
[380140845,1755571852532,-151.0,0.00019726,2]
[380140846,1755571852541,-521.0,0.00019726,2]
[380140847,1755571852552,-151.0,0.00019726,2]
[380140848,1755571852561,-480.0,0.00019726,2]
[380140849,1755571852570,-151.0,0.00019726,2]
[380140850,1755571852579,-724.33,0.00019726,2]
[380140851,1755571852588,-151.0,0.00019726,2]
[380140852,1755571852597,-480.0,0.00019726,2]
[380140853,1755571852606,-1111.68,0.00019726,2]
[380140854,1755571852615,-480.0,0.00019726,2]
[380140855,1755571852624,-404.3486861,0.00019726,2]
[380140856,1755571852633,-1153.12,0.00019726,2]
[380140857,1755571852643,-480.0,0.00019726,2]
[380140858,1755571852652,-491.99556271,0.00019726,2]
[380140859,1755571852661,-500.0,0.00019726,2]
[380140860,1755571852670,-242.0,0.00019744,2]
[380140861,1755571852679,-597.184088,0.00019773,2]
[380140862,1755571852689,-597.184088,0.00019773,2]
[380140863,1755571852699,-151.0,0.00019773,2]
[380140864,1755571852708,-151.0,0.00019773,2]
[380140865,1755571852717,-151.0,0.00019773,2]
[380140866,1755571852726,-348.507292,0.00019773,2]
[380140867,1755571852735,-151.0,0.00019773,2]
[380140868,1755571852744,-348.507292,0.00019773,2]
[380140869,1755571852753,-183.082645,0.00019773,2]
[380140870,1755571852762,-151.0,0.00019773,2]
[380140871,1755571852771,-183.082645,0.00019773,2]
[380140872,1755571852779,-151.0,0.00019773,2]
[380140873,1755571852788,-151.0,0.00019773,2]
[380140874,1755571852799,-165.814009,0.00019773,2]
[380140875,1755571852808,-165.814009,0.00019773,2]
[380140876,1755571852818,-151.0,0.00019773,2]
[380140877,1755571852826,-233.851648,0.00019773,2]
[380140878,1755571852835,-233.851648,0.00019773,2]
[380140879,1755571852845,-151.0,0.00019773,2]
[380140880,1755571852917,-196.61496,0.00019773,2]
[380140881,1755571852926,-196.61496,0.00019773,2]
[380140882,1755571852936,-427.753188,0.00019773,2]
[380140883,1755571852945,-151.0,0.00019773,2]
[380140884,1755571852954,-427.753188,0.00019773,2]
[380140885,1755571852963,-572.45526,0.00019773,2]
[380140886,1755571852972,-151.0,0.00019773,2]
[380140887,1755571852981,-572.45526,0.00019773,2]
[380140888,1755571852990,-231.672566,0.00019773,2]
[380140889,1755571852999,-218.0,0.0001979,2]
[380140890,1755571853011,-151.0,0.000198,2]
[380140891,1755571853021,-151.0,0.000198,2]
[380140892,1755571853031,-151.0,0.000198,2]
[380140893,1755571853040,-151.0,0.000198,2]
[380140894,1755571853050,-953.0,0.00019811,2]
[380140895,1755571853059,-218.0,0.00019816,2]
[380140896,1755571853069,-49065.85782506,0.00019817,2]
[380140897,1755571853232,-100934.14217494,0.00019817,2]
[380140898,1755571853242,-70909.14428483,0.00019817,2]
[380140899,1755571853257,-835.462793,0.00019817,2]
[380140900,1755571853275,-835.462793,0.00019817,2]
[380140901,1755571853291,-151.0,0.00019817,2]
[380140902,1755571853309,-155.770809,0.00019817,2]
[380140903,1755571853327,-155.770809,0.00019817,2]
[380140904,1755571853343,-151.0,0.00019817,2]
[380140905,1755571853360,-151.0,0.00019817,2]
[380140906,1755571853375,-151.0,0.00019817,2]
[380140907,1755571853390,-217.522944,0.00019817,2]
[380140908,1755571853409,-1551.782846,0.00019817,2]
[380140909,1755571853429,-1551.782846,0.00019817,2]
[380140910,1755571853443,-151.0,0.00019817,2]
[380140911,1755571853460,-1036.413818,0.00019817,2]
[380140912,1755571853476,-1036.413818,0.00019817,2]
[380140913,1755571853492,-161.530892,0.00019817,2]
[380140914,1755571853506,-161.530892,0.00019817,2]
[380140915,1755571853521,-151.0,0.00019817,2]
[380140916,1755571853537,-179.71246006,0.0001983,2]
[380140917,1755571853551,-953.0,0.0001984,2]
[380140918,1755571853565,-170.0,0.00019841,2]
[380140919,1755571853580,-151.0,0.00019863,2]
[380140920,1755571853593,-151.0,0.00019863,2]
[380140921,1755571853607,-151.0,0.00019863,2]
[380140922,1755571853622,-179.888096,0.00019863,2]
[380140923,1755571853636,-403.305264,0.00019863,2]
[380140924,1755571853651,-403.305264,0.00019863,2]
[380140925,1755571853666,-418.589448,0.00019863,2]
[380140926,1755571853680,-418.589448,0.00019863,2]
[380140927,1755571853694,-151.0,0.00019863,2]
[380140928,1755571853709,-151.0,0.00019863,2]
[380140929,1755571853723,-369.435789,0.00019863,2]
[380140930,1755571853737,-237.148205,0.00019868,2]
[380140931,1755571853752,-800.0,0.0001989,2]
[380140932,1755571853766,-151.0,0.000199,2]
[380140933,1755571853779,-151.0,0.000199,2]
[380140934,1755571853793,-151.0,0.000199,2]
[380140935,1755571853802,-151.0,0.000199,2]
[380140936,1755571853811,-151.0,0.000199,2]
[380140937,1755571853821,-151.0,0.000199,2]
[380140938,1755571853831,-3330.71927724,0.000199,2]
[380140939,1755571853841,-218.0,0.00019902,2]
[380140940,1755571853851,-151.0,0.00019909,2]
[380140941,1755571853861,-151.0,0.00019909,2]
[380140942,1755571853870,-278.039198,0.00019909,2]
[380140943,1755571853880,-278.039198,0.00019909,2]
[380140944,1755571853889,-975.638,0.00019909,2]
[380140945,1755571853899,-2153.0,0.00019909,2]
[380140946,1755571853908,-637.0,0.00019909,2]
[380140947,1755571853918,-800.0,0.00019957,2]
[380140948,1755571853927,-800.0,0.00019968,2]
[380140949,1755571853937,-151.0,0.0001999,2]
[380140950,1755571854119,-151.0,0.0001999,2]
[380140951,1755571854133,-151.0,0.0001999,2]
[380140952,1755571854143,-403.305264,0.0001999,2]
[380140953,1755571854152,-151.0,0.0001999,2]
[380140954,1755571854163,-1036.413818,0.0001999,2]
[380140955,1755571854173,-403.305264,0.0001999,2]
[380140956,1755571854182,-418.589448,0.0001999,2]
[380140957,1755571854191,-1036.413818,0.0001999,2]
[380140958,1755571854200,-418.589448,0.0001999,2]
[380140959,1755571854210,-151.0,0.0001999,2]
[380140960,1755571854219,-161.530892,0.0001999,2]
[380140961,1755571854229,-161.530892,0.0001999,2]
[380140962,1755571854238,-151.0,0.0001999,2]
[380140963,1755571854247,-151.0,0.0001999,2]
[380140964,1755571854257,-442.0,0.0002,2]
[380140965,1755571854266,-152.83772289,0.0002,2]
[380140966,1755571854276,-231.9125191,0.0002,2]
[380140967,1755571854285,-151.0,0.0002,2]
[380140968,1755571854295,-151.28036725,0.0002,2]
[380140969,1755571854304,-277.83730038,0.0002,2]
[380140970,1755571854313,-156.65165441,0.0002,2]
[380140971,1755571854326,-213.13641941,0.0002,2]
[380140972,1755571854335,-203.97,0.0002,2]
[380140973,1755571854344,-236.19939911,0.0002,20]
[380140974,1755571854353,-480.0,0.0002,2]
[380140975,1755571854362,-480.0,0.0002,2]
[380140976,1755571854372,-151.0,0.0002,2]
[380140977,1755571854381,-151.0,0.0002,2]
[380140978,1755571854391,-480.0,0.0002,2]
[380140979,1755571854400,-151.0,0.0002,2]
[380140980,1755571854409,-151.0,0.0002,2]
[380140981,1755571854419,-503.94,0.0002,2]
[380140982,1755571854428,-485.22120474,0.0002,2]
[380140983,1755571854438,-480.0,0.0002,2]
[380140984,1755571854447,-151.0,0.0002,2]
[380140985,1755571854456,-160.132128,0.0002,2]
[380140986,1755571854465,-480.0,0.0002,2]
[380140987,1755571854475,-480.0,0.0002,2]
[380140988,1755571854484,-151.0,0.0002,2]
[380140989,1755571854493,-151.0,0.0002,2]
[380140990,1755571854503,-3975.87,0.0002,2]
[380140991,1755571854512,-658.64,0.0002,2]
[380140992,1755571854521,-480.0,0.0002,2]
[380140993,1755571854531,-480.0,0.0002,2]
[380140994,1755571854540,-151.0,0.0002,2]
[380140995,1755571854550,-151.0,0.0002,2]
[380140996,1755571854559,-151.0,0.0002,2]
[380140997,1755571854568,-151.0,0.0002,2]
[380140998,1755571854577,-728.69,0.0002,2]
[380140999,1755571854588,-151.0,0.0002,2]
[380141000,1755571854598,-151.0,0.0002,2]
[380141001,1755571854607,-480.0,0.0002,2]
[380141002,1755571854616,-480.0,0.0002,2]
[380141003,1755571854625,-480.0,0.0002,2]
[380141004,1755571854635,-780.52,0.0002,2]
[380141005,1755571854644,-480.0,0.0002,2]
[380141006,1755571854653,-151.0,0.0002,2]
[380141007,1755571854662,-480.0,0.0002,2]
[380141008,1755571854672,-480.0,0.0002,2]
[380141009,1755571854681,-151.0,0.0002,2]
[380141010,1755571854690,-151.0,0.0002,2]
[380141011,1755571854700,-151.0,0.0002,2]
[380141012,1755571854709,-151.0,0.0002,2]
[380141013,1755571854718,-247.54596269,0.0002,2]
[380141014,1755571854728,-480.0,0.0002,2]
[380141015,1755571854738,-2567.44,0.0002,2]
[380141016,1755571854747,-151.0,0.0002,2]
[380141017,1755571854755,-480.0,0.0002,2]
[380141018,1755571854766,-480.0,0.0002,2]
[380141019,1755571854776,-480.0,0.0002,2]
[380141020,1755571854785,-480.0,0.0002,2]
[380141021,1755571854794,-480.0,0.0002,2]
[380141022,1755571854803,-738.51,0.0002,2]
[380141023,1755571854812,-480.0,0.0002,2]
[380141024,1755571854821,-151.163807,0.0002,2]
[380141025,1755571854831,-480.0,0.0002,2]
[380141026,1755571854841,-480.0,0.0002,2]
[380141027,1755571854850,-480.0,0.0002,2]
[380141028,1755571854859,-480.0,0.0002,2]
[380141029,1755571854868,-485.4907035,0.0002,2]
[380141030,1755571854877,-480.0,0.0002,2]
[380141031,1755571854887,-278.039198,0.0002,2]
[380141032,1755571854896,-278.039198,0.0002,2]
[380141033,1755571854905,-480.0,0.0002,2]
[380141034,1755571854915,-824.41,0.0002,2]
[380141035,1755571854924,-480.0,0.0002,2]
[380141036,1755571854933,-480.0,0.0002,2]
[380141037,1755571854942,-480.0,0.0002,2]
[380141038,1755571854951,-835.462793,0.0002,2]
[380141039,1755571854960,-835.462793,0.0002,2]
[380141040,1755571854969,-835.462793,0.0002,2]
[380141041,1755571854978,-151.0,0.0002,2]
[380141042,1755571854987,-151.0,0.0002,2]
[380141043,1755571854997,-835.462793,0.0002,2]
[380141044,1755571855006,-480.0,0.0002,2]
[380141045,1755571855018,-3849.98,0.0002,2]
[380141046,1755571855027,-3849.98,0.0002,2]
[380141047,1755571855037,-822.38,0.0002,2]
[380141048,1755571855046,-155.770809,0.0002,2]
[380141049,1755571855057,-155.770809,0.0002,2]
[380141050,1755571855067,-155.770809,0.0002,2]
[380141051,1755571855076,-155.770809,0.0002,2]
[380141052,1755571855086,-465.96854256,0.0002,2]
[380141053,1755571855095,-480.0,0.0002,2]
[380141054,1755571855105,-480.0,0.0002,2]
[380141055,1755571855114,-674.92,0.0002,2]
[380141056,1755571855123,-480.0,0.0002,2]
[380141057,1755571855133,-480.0,0.0002,2]
[380141058,1755571855143,-597.184088,0.0002,2]
[380141059,1755571855152,-597.184088,0.0002,2]
[380141060,1755571855161,-480.0,0.0002,2]
[380141061,1755571855170,-480.0,0.0002,2]
[380141062,1755571855180,-597.184088,0.0002,2]
[380141063,1755571855190,-597.184088,0.0002,2]
[380141064,1755571855199,-480.0,0.0002,2]
[380141065,1755571855208,-1308.25,0.0002,2]
[380141066,1755571855218,-480.0,0.0002,2]
[380141067,1755571855227,-480.0,0.0002,2]
[380141068,1755571855236,-151.0,0.0002,2]
[380141069,1755571855246,-151.0,0.0002,2]
[380141070,1755571855255,-151.0,0.0002,2]
[380141071,1755571855265,-165.819664,0.0002,2]
[380141072,1755571855274,-151.0,0.0002,2]
[380141073,1755571855283,-151.0,0.0002,2]
[380141074,1755571855293,-480.0,0.0002,2]
[380141075,1755571855304,-348.507292,0.0002,2]
[380141076,1755571855314,-348.507292,0.0002,2]
[380141077,1755571855323,-151.0,0.0002,2]
[380141078,1755571855332,-152.762215,0.0002,2]
[380141079,1755571855341,-348.507292,0.0002,2]
[380141080,1755571855350,-348.507292,0.0002,2]
[380141081,1755571855360,-183.082645,0.0002,2]
[380141082,1755571855369,-183.082645,0.0002,2]
[380141083,1755571855378,-480.0,0.0002,2]
[380141084,1755571855387,-152.59292,0.0002,2]
[380141085,1755571855396,-456.72195532,0.0002,2]
[380141086,1755571855405,-183.082645,0.0002,2]
[380141087,1755571855419,-183.082645,0.0002,2]
[380141088,1755571855428,-480.0,0.0002,2]
[380141089,1755571855437,-480.0,0.0002,2]
[380141090,1755571855447,-480.0,0.0002,2]
[380141091,1755571855456,-480.0,0.0002,2]
[380141092,1755571855465,-151.0,0.0002,2]
[380141093,1755571855474,-151.0,0.0002,2]
[380141094,1755571855483,-951.37,0.0002,2]
[380141095,1755571855492,-621.27,0.0002,2]
[380141096,1755571855501,-151.833911,0.0002,2]
[380141097,1755571855511,-151.0,0.0002,2]
[380141098,1755571855519,-887.26,0.0002,2]
[380141099,1755571855528,-256.472762,0.0002,2]
[380141100,1755571855537,-151.0,0.0002,2]
[380141101,1755571855546,-151.0,0.0002,2]
[380141102,1755571855556,-480.0,0.0002,2]
[380141103,1755571855566,-1000.0,0.0002,2]
[380141104,1755571855575,-480.0,0.0002,2]
[380141105,1755571855585,-480.0,0.0002,2]
[380141106,1755571855594,-468.43143579,0.0002,2]
[380141107,1755571855604,-480.0,0.0002,2]
[380141108,1755571855613,-582.64,0.0002,2]
[380141109,1755571855623,-480.0,0.0002,2]
[380141110,1755571855633,-641.38,0.0002,2]
[380141111,1755571855642,-1551.782846,0.0002,2]
[380141112,1755571855651,-1551.782846,0.0002,2]
[380141113,1755571855661,-1058.1,0.0002,2]
[380141114,1755571855670,-1551.782846,0.0002,2]
[380141115,1755571855679,-1551.782846,0.0002,2]
[380141116,1755571855688,-480.0,0.0002,2]
[380141117,1755571855697,-513.86,0.0002,2]
[380141118,1755571855706,-151.0,0.0002,2]
[380141119,1755571855716,-151.0,0.0002,2]
[380141120,1755571855725,-480.0,0.0002,2]
[380141121,1755571855735,-2226.18,0.0002,2]
[380141122,1755571855744,-480.0,0.0002,2]
[380141123,1755571855753,-165.814009,0.0002,2]
[380141124,1755571855763,-165.814009,0.0002,2]
[380141125,1755571855772,-165.814009,0.0002,2]
[380141126,1755571855781,-165.814009,0.0002,2]
[380141127,1755571855791,-151.0,0.0002,2]
[380141128,1755571855800,-1389.47,0.0002,2]
[380141129,1755571855809,-151.0,0.0002,2]
[380141130,1755571855818,-480.0,0.0002,2]
[380141131,1755571855828,-480.0,0.0002,2]
[380141132,1755571855837,-233.851648,0.0002,2]
[380141133,1755571855846,-233.851648,0.0002,2]
[380141134,1755571855856,-233.851648,0.0002,2]
[380141135,1755571855865,-480.0,0.0002,2]
[380141136,1755571855875,-233.851648,0.0002,2]
[380141137,1755571855883,-480.0,0.0002,2]
[380141138,1755571855893,-526.04799387,0.0002,2]
[380141139,1755571855902,-492.93291857,0.0002,2]
[380141140,1755571855911,-480.0,0.0002,2]
[380141141,1755571855920,-480.0,0.0002,2]
[380141142,1755571855930,-480.0,0.0002,2]
[380141143,1755571855939,-151.0,0.0002,2]
[380141144,1755571855948,-151.0,0.0002,2]
[380141145,1755571855957,-480.0,0.0002,2]
[380141146,1755571855967,-480.0,0.0002,2]
[380141147,1755571855976,-1060.68,0.0002,2]
[380141148,1755571855986,-1515.48,0.0002,2]
[380141149,1755571855995,-196.61496,0.0002,2]
[380141150,1755571856004,-196.61496,0.0002,2]
[380141151,1755571856017,-2340.91,0.0002,2]
[380141152,1755571856027,-196.61496,0.0002,2]
[380141153,1755571856036,-196.61496,0.0002,2]
[380141154,1755571856048,-427.753188,0.0002,2]
[380141155,1755571856059,-151.0,0.0002,2]
[380141156,1755571856068,-427.753188,0.0002,2]
[380141157,1755571856077,-202.417179,0.0002,2]
[380141158,1755571856088,-427.753188,0.0002,2]
[380141159,1755571856097,-1144.76,0.0002,2]
[380141160,1755571856107,-427.753188,0.0002,2]
[380141161,1755571856116,-480.0,0.0002,2]
[380141162,1755571856125,-1844.46,0.0002,2]
[380141163,1755571856134,-480.0,0.0002,2]
[380141164,1755571856144,-480.0,0.0002,2]
[380141165,1755571856153,-572.45526,0.0002,2]
[380141166,1755571856164,-572.45526,0.0002,2]
[380141167,1755571856174,-1686.71,0.0002,2]
[380141168,1755571856183,-151.0,0.0002,2]
[380141169,1755571856192,-151.0,0.0002,2]
[380141170,1755571856201,-2113.96,0.0002,2]
[380141171,1755571856211,-572.45526,0.0002,2]
[380141172,1755571856220,-572.45526,0.0002,2]
[380141173,1755571856229,-699.31,0.0002,2]
[380141174,1755571856238,-151.0,0.0002,2]
[380141175,1755571856248,-255.847081,0.0002,2]
[380141176,1755571856257,-480.0,0.0002,2]
[380141177,1755571856267,-480.0,0.0002,2]
[380141178,1755571856276,-151.0,0.0002,2]
[380141179,1755571856285,-296.127191,0.0002,2]
[380141180,1755571856294,-790.91,0.0002,2]
[380141181,1755571856303,-480.0,0.0002,2]
[380141182,1755571856312,-1144.75,0.0002,2]
[380141183,1755571856322,-480.0,0.0002,2]
[380141184,1755571856331,-1081.01,0.0002,2]
[380141185,1755571856340,-480.0,0.0002,2]
[380141186,1755571856350,-487.06010431,0.0002,2]
[380141187,1755571856359,-932.47,0.0002,2]
[380141188,1755571856368,-480.0,0.0002,2]
[380141189,1755571856378,-1500.0,0.0002,14]
[380141190,1755571856387,-480.0,0.0002,2]
[380141191,1755571856397,-151.0,0.0002,2]
[380141192,1755571856407,-1500.0,0.0002,14]
[380141193,1755571856418,-151.0,0.0002,2]
[380141194,1755571856428,-1500.0,0.0002,14]
[380141195,1755571856437,-1500.0,0.0002,14]
[380141196,1755571856446,-480.0,0.0002,2]
[380141197,1755571856457,-1500.0,0.0002,14]
[380141198,1755571856467,-1500.0,0.0002,14]
[380141199,1755571856476,-1500.0,0.0002,14]
[380141200,1755571856485,-1500.0,0.0002,14]
[380141201,1755571856495,-1500.0,0.0002,14]
[380141202,1755571856504,-1500.0,0.0002,14]
[380141203,1755571856514,-1500.0,0.0002,14]
[380141204,1755571856523,-1500.0,0.0002,14]
[380141205,1755571856533,-151.0,0.0002,2]
[380141206,1755571856542,-1500.0,0.0002,14]
[380141207,1755571856551,-151.0,0.0002,2]
[380141208,1755571856560,-1500.0,0.0002,14]
[380141209,1755571856569,-1500.0,0.0002,14]
[380141210,1755571856578,-1500.0,0.0002,14]
[380141211,1755571856588,-1500.0,0.0002,14]
[380141212,1755571856597,-1500.0,0.0002,14]
[380141213,1755571856607,-1500.0,0.0002,14]
[380141214,1755571856616,-1500.0,0.0002,14]
[380141215,1755571856625,-1500.0,0.0002,14]
[380141216,1755571856635,-1500.0,0.0002,14]
[380141217,1755571856644,-1500.0,0.0002,14]
[380141218,1755571856654,-480.0,0.0002,2]
[380141219,1755571856663,-1500.0,0.0002,14]
[380141220,1755571856674,-622.946484,0.0002,14]
[380141221,1755571856683,-5557.56,0.0002,2]
[380141222,1755571856692,-480.0,0.0002,2]
[380141223,1755571856701,-3506.17,0.0002,2]
[380141224,1755571856711,-480.0,0.0002,2]
[380141225,1755571856720,-582.9200745,0.0002,2]
[380141226,1755571856832,-677.87,0.0002,2]
[380141227,1755571856842,-480.0,0.0002,2]
[380141228,1755571856852,-2630.2,0.0002,2]
[380141229,1755571856861,-1069.27,0.0002,2]
[380141230,1755571856871,-615.84,0.0002,2]
[380141231,1755571856880,-480.0,0.0002,2]
[380141232,1755571856889,-480.0,0.0002,2]
[380141233,1755571856899,-151.0,0.0002,2]
[380141234,1755571856908,-151.0,0.0002,2]
[380141235,1755571856919,-151.0,0.0002,2]
[380141236,1755571856928,-151.0,0.0002,2]
[380141237,1755571856938,-151.0,0.0002,2]
[380141238,1755571856947,-151.0,0.0002,2]
[380141239,1755571856956,-480.0,0.0002,2]
[380141240,1755571856965,-480.0,0.0002,2]
[380141241,1755571856974,-935.17,0.0002,2]
[380141242,1755571856984,-480.0,0.0002,2]
[380141243,1755571856992,-6302.88,0.0002,2]
[380141244,1755571857002,-480.0,0.0002,2]
[380141245,1755571857015,-480.0,0.0002,2]
[380141246,1755571857024,-480.0,0.0002,2]
[380141247,1755571857033,-480.0,0.0002,2]
[380141248,1755571857042,-487.63,0.0002,2]
[380141249,1755571857052,-563.21,0.0002,2]
[380141250,1755571857063,-480.0,0.0002,2]
[380141251,1755571857072,-526.33,0.0002,2]
[380141252,1755571857082,-743.48,0.0002,2]
[380141253,1755571857091,-1905.62,0.0002,2]
[380141254,1755571857101,-480.0,0.0002,2]
[380141255,1755571857110,-480.0,0.0002,2]
[380141256,1755571857119,-480.0,0.0002,2]
[380141257,1755571857128,-480.0,0.0002,2]
[380141258,1755571857137,-480.0,0.0002,2]
[380141259,1755571857147,-480.0,0.0002,2]
[380141260,1755571857156,-489.5957141,0.0002,2]
[380141261,1755571857167,-480.0,0.0002,2]
[380141262,1755571857176,-864.85,0.0002,2]